[Event "*** SCC Grand Prix: Titled Tuesday Blitz"]
[Site "Chess.com"]
[Date "2020.09.08"]
[Round "4"]
[White "LawrenceTrent"]
[Black "RaunakSadhwani2005"]
[Result "0-1"]
[WhiteElo "2532"]
[BlackElo "2862"]
[TimeControl "180+1"]
[EndTime "10:38:42 PDT"]
[Termination "RaunakSadhwani2005 won by resignation"]

1. f4 {[%clk 0:03:00.4]} 1... d5 {[%clk 0:02:58.8]} 2. b3 {[%clk 0:03:00.1]}
2... Nf6 {[%clk 0:02:53.3]} 3. Bb2 {[%clk 0:03:00]} 3... g6 {[%clk 0:02:54]} 4.
Nf3 {[%clk 0:02:58.9]} 4... Bg7 {[%clk 0:02:54.2]} 5. e3 {[%clk 0:02:58.5]} 5...
O-O {[%clk 0:02:54.7]} 6. Be2 {[%clk 0:02:59.1]} 6... c5 {[%clk 0:02:55.2]} 7.
O-O {[%clk 0:02:59.5]} 7... Nc6 {[%clk 0:02:55.8]} 8. Ne5 {[%clk 0:02:59]} 8...
d4 {[%clk 0:02:54.1]} 9. Nxc6 {[%clk 0:02:57.8]} 9... bxc6 {[%clk 0:02:55]} 10.
Bf3 {[%clk 0:02:56.6]} 10... Nd5 {[%clk 0:02:52.3]} 11. exd4 {[%clk 0:02:37.8]}
11... Nxf4 {[%clk 0:02:21.2]} 12. Bxc6 {[%clk 0:02:30]} 12... Bxd4+ {[%clk
0:02:14.4]} 13. Bxd4 {[%clk 0:02:29.9]} 13... Qxd4+ {[%clk 0:02:14.7]} 14. Kh1
{[%clk 0:02:30.6]} 14... Ba6 {[%clk 0:02:08.3]} 15. c3 {[%clk 0:02:17]} 15...
Qd6 {[%clk 0:01:56.4]} 16. Bxa8 {[%clk 0:02:14.6]} 16... Bxf1 {[%clk 0:01:52.3]}
17. Qxf1 {[%clk 0:02:06.1]} 17... Rxa8 {[%clk 0:01:51.4]} 18. Qf3 {[%clk
0:02:06.2]} 18... Rd8 {[%clk 0:01:48.9]} 19. g3 {[%clk 0:02:05.1]} 19... Ne6
{[%clk 0:01:43.8]} 20. Qe3 {[%clk 0:01:58.8]} 20... Qd5+ {[%clk 0:01:40.1]} 21.
Kg1 {[%clk 0:01:58.8]} 21... Ng5 {[%clk 0:01:40.5]} 22. h4 {[%clk 0:01:57.4]}
22... Nf3+ {[%clk 0:01:38.9]} 23. Kf2 {[%clk 0:01:57.7]} 23... Ne5 {[%clk
0:01:37.3]} 24. Kg1 {[%clk 0:01:44.9]} 24... h5 {[%clk 0:01:19.1]} 25. Na3
{[%clk 0:01:42.7]} 25... Ng4 {[%clk 0:01:10.8]} 26. Qe2 {[%clk 0:01:39.6]} 26...
Qxd2 {[%clk 0:01:09.7]} 27. Qxd2 {[%clk 0:01:39.8]} 27... Rxd2 {[%clk
0:01:10.6]} 28. Nb5 {[%clk 0:01:40.2]} 28... e5 {[%clk 0:00:59.4]} 29. Re1
{[%clk 0:01:20.8]} 29... Rxa2 {[%clk 0:00:56.9]} 30. Nc7 {[%clk 0:01:20.1]}
30... f5 {[%clk 0:00:52.5]} 31. Ne6 {[%clk 0:01:18.3]} 31... e4 {[%clk
0:00:48.2]} 32. Nxc5 {[%clk 0:01:18.1]} 32... Ne5 {[%clk 0:00:40.3]} 33. Rd1
{[%clk 0:01:15.9]} 33... Nf3+ {[%clk 0:00:40.2]} 34. Kf1 {[%clk 0:01:16.4]}
34... e3 {[%clk 0:00:39.1]} 35. Rd8+ {[%clk 0:01:10.6]} 35... Kf7 {[%clk
0:00:38.8]} 36. Nd3 {[%clk 0:01:02.6]} 36... e2+ {[%clk 0:00:35.5]} 0-1

[Event "*** SCC Grand Prix: Titled Tuesday Blitz"]
[Site "Chess.com"]
[Date "2020.09.08"]
[Round "4"]
[White "boasovietica"]
[Black "Alindsay211"]
[Result "1-0"]
[WhiteElo "2493"]
[BlackElo "2319"]
[TimeControl "180+1"]
[EndTime "10:38:42 PDT"]
[Termination "boasovietica won on time"]

1. e4 {[%clk 0:03:00.9]} 1... c5 {[%clk 0:02:58.1]} 2. Nf3 {[%clk 0:03:00.5]}
2... d6 {[%clk 0:02:57.1]} 3. d4 {[%clk 0:02:59.4]} 3... cxd4 {[%clk 0:02:52.7]}
4. Nxd4 {[%clk 0:03:00.3]} 4... Nf6 {[%clk 0:02:46]} 5. Nc3 {[%clk 0:02:50.5]}
5... Nc6 {[%clk 0:02:32.9]} 6. Nb3 {[%clk 0:02:42.2]} 6... e6 {[%clk 0:02:27.5]}
7. Bd3 {[%clk 0:02:42]} 7... Be7 {[%clk 0:01:56.3]} 8. f4 {[%clk 0:02:39.4]}
8... e5 {[%clk 0:01:36.2]} 9. f5 {[%clk 0:02:19.5]} 9... d5 {[%clk 0:01:11.5]}
10. Qf3 {[%clk 0:02:12.9]} 10... dxe4 {[%clk 0:00:36.4]} 11. Nxe4 {[%clk
0:02:12.4]} 11... O-O {[%clk 0:00:34.2]} 12. O-O {[%clk 0:01:59.8]} 12... Nd4
{[%clk 0:00:28.8]} 13. Nxd4 {[%clk 0:01:51.8]} 13... exd4 {[%clk 0:00:16]} 14.
Nxf6+ {[%clk 0:01:37.4]} 14... Bxf6 {[%clk 0:00:15.8]} 15. Bd2 {[%clk
0:01:35.2]} 15... Qb6 {[%clk 0:00:13.2]} 16. b3 {[%clk 0:01:31.8]} 16... Bd7
{[%clk 0:00:13.3]} 17. g4 {[%clk 0:01:22.5]} 17... Bc6 {[%clk 0:00:13]} 18. Qg3
{[%clk 0:01:22.6]} 18... h6 {[%clk 0:00:13]} 19. h4 {[%clk 0:01:22.6]} 19... Qd8
{[%clk 0:00:11.3]} 20. g5 {[%clk 0:01:21.5]} 20... hxg5 {[%clk 0:00:11.4]} 21.
hxg5 {[%clk 0:01:21.9]} 21... Be7 {[%clk 0:00:12.1]} 22. f6 {[%clk 0:01:17.7]}
22... Bd6 {[%clk 0:00:12.2]} 23. Qh4 {[%clk 0:01:04.7]} 23... Re8 {[%clk
0:00:05.6]} 24. Qh7+ {[%clk 0:00:57.1]} 1-0

[Event "*** SCC Grand Prix: Titled Tuesday Blitz"]
[Site "Chess.com"]
[Date "2020.09.08"]
[Round "4"]
[White "Bodnar_Mykola"]
[Black "BocharovD"]
[Result "0-1"]
[WhiteElo "2523"]
[BlackElo "2796"]
[TimeControl "180+1"]
[EndTime "10:38:44 PDT"]
[Termination "BocharovD won by resignation"]

1. e4 {[%clk 0:03:00.9]} 1... c5 {[%clk 0:02:59.7]} 2. Nf3 {[%clk 0:03:00.8]}
2... d6 {[%clk 0:02:59.3]} 3. d4 {[%clk 0:03:01.4]} 3... cxd4 {[%clk 0:02:59]}
4. Nxd4 {[%clk 0:03:02.3]} 4... Nf6 {[%clk 0:02:59.2]} 5. Nc3 {[%clk 0:03:02.7]}
5... a6 {[%clk 0:02:59.6]} 6. Bg5 {[%clk 0:03:01.1]} 6... Nbd7 {[%clk
0:02:59.3]} 7. f4 {[%clk 0:02:59.8]} 7... Qc7 {[%clk 0:02:56.9]} 8. Qe2 {[%clk
0:02:57]} 8... e6 {[%clk 0:02:45.8]} 9. O-O-O {[%clk 0:02:55.1]} 9... Be7 {[%clk
0:02:45.7]} 10. g4 {[%clk 0:02:51.3]} 10... b5 {[%clk 0:02:45.2]} 11. Bxf6
{[%clk 0:02:50.5]} 11... Bxf6 {[%clk 0:02:43.9]} 12. g5 {[%clk 0:02:50.5]} 12...
Be7 {[%clk 0:02:39.5]} 13. f5 {[%clk 0:02:33.8]} 13... Bxg5+ {[%clk 0:02:36.1]}
14. Kb1 {[%clk 0:02:33.8]} 14... Nf6 {[%clk 0:02:24.8]} 15. Qg2 {[%clk
0:02:04.5]} 15... Bh6 {[%clk 0:02:21.3]} 16. e5 {[%clk 0:01:42.9]} 16... Bb7
{[%clk 0:02:18.7]} 17. Ndxb5 {[%clk 0:01:43.4]} 17... axb5 {[%clk 0:02:01.8]}
18. Bxb5+ {[%clk 0:01:11.5]} 18... Kf8 {[%clk 0:01:52.8]} 19. Qg3 {[%clk
0:00:49.8]} 19... dxe5 {[%clk 0:01:48.4]} 20. Rhf1 {[%clk 0:00:46.7]} 20... Bf4
{[%clk 0:01:42.4]} 21. Qh3 {[%clk 0:00:44]} 21... exf5 {[%clk 0:01:38.1]} 22.
Qxf5 {[%clk 0:00:44.9]} 22... Rd8 {[%clk 0:01:34.4]} 23. Rxd8+ {[%clk
0:00:38.9]} 23... Qxd8 {[%clk 0:01:34.4]} 24. Rd1 {[%clk 0:00:39.8]} 24... Qe7
{[%clk 0:01:33.3]} 25. Qd3 {[%clk 0:00:36]} 25... g6 {[%clk 0:01:30.9]} 26. a4
{[%clk 0:00:36.1]} 26... Kg7 {[%clk 0:01:30]} 27. a5 {[%clk 0:00:35.9]} 27... e4
{[%clk 0:01:20.8]} 28. Qd4 {[%clk 0:00:36]} 28... Be5 {[%clk 0:01:20.3]} 29. Qb6
{[%clk 0:00:36.2]} 29... Rb8 {[%clk 0:01:11.1]} 30. Qa7 {[%clk 0:00:14.4]} 30...
Qb4 {[%clk 0:01:07.7]} 0-1

[Event "*** SCC Grand Prix: Titled Tuesday Blitz"]
[Site "Chess.com"]
[Date "2020.09.08"]
[Round "4"]
[White "Ave_Mariia"]
[Black "VladimirBugayev"]
[Result "1-0"]
[WhiteElo "2451"]
[BlackElo "2274"]
[TimeControl "180+1"]
[EndTime "10:38:46 PDT"]
[Termination "Ave_Mariia won on time"]

1. d4 {[%clk 0:02:58]} 1... d5 {[%clk 0:02:58.5]} 2. c4 {[%clk 0:02:57.9]} 2...
c6 {[%clk 0:02:58.6]} 3. Nf3 {[%clk 0:02:57.5]} 3... Nf6 {[%clk 0:02:58.7]} 4.
Qc2 {[%clk 0:02:57.8]} 4... a6 {[%clk 0:02:53.8]} 5. e3 {[%clk 0:02:33]} 5... g6
{[%clk 0:02:45.1]} 6. Bd3 {[%clk 0:02:22.2]} 6... Bg7 {[%clk 0:02:44.9]} 7. O-O
{[%clk 0:02:20.2]} 7... O-O {[%clk 0:02:44.1]} 8. Nc3 {[%clk 0:02:16.7]} 8...
Bg4 {[%clk 0:02:31.5]} 9. Ne5 {[%clk 0:02:13.9]} 9... Be6 {[%clk 0:02:31.9]} 10.
b3 {[%clk 0:02:08.6]} 10... b5 {[%clk 0:02:18.7]} 11. f4 {[%clk 0:01:58.2]}
11... dxc4 {[%clk 0:02:08.9]} 12. bxc4 {[%clk 0:01:59.1]} 12... c5 {[%clk
0:01:40]} 13. d5 {[%clk 0:01:57.2]} 13... bxc4 {[%clk 0:01:39.1]} 14. dxe6
{[%clk 0:01:50.8]} 14... cxd3 {[%clk 0:01:38.3]} 15. exf7+ {[%clk 0:01:50.9]}
15... Kh8 {[%clk 0:01:38.2]} 16. Qd2 {[%clk 0:01:45.8]} 16... c4 {[%clk
0:01:33.3]} 17. Nxc4 {[%clk 0:01:44]} 17... Nc6 {[%clk 0:01:03.6]} 18. Bb2
{[%clk 0:01:38.2]} 18... Rxf7 {[%clk 0:01:02.2]} 19. Ne5 {[%clk 0:01:35.6]}
19... Qe8 {[%clk 0:00:48]} 20. Nxf7+ {[%clk 0:01:26.7]} 20... Qxf7 {[%clk
0:00:47.9]} 21. Qxd3 {[%clk 0:01:27.3]} 21... Nb4 {[%clk 0:00:37.1]} 22. Qe2
{[%clk 0:01:25.2]} 22... a5 {[%clk 0:00:25.9]} 23. a3 {[%clk 0:01:23.6]} 23...
Nc6 {[%clk 0:00:25.4]} 24. Rfd1 {[%clk 0:01:15.7]} 24... Qe6 {[%clk 0:00:24.4]}
25. e4 {[%clk 0:01:13.4]} 25... Nd4 {[%clk 0:00:21.2]} 26. Rxd4 {[%clk
0:01:02.6]} 26... Qb6 {[%clk 0:00:18.9]} 27. Rd1 {[%clk 0:00:58.8]} 27... Ng4
{[%clk 0:00:08.4]} 28. e5 {[%clk 0:00:58.8]} 1-0

[Event "*** SCC Grand Prix: Titled Tuesday Blitz"]
[Site "Chess.com"]
[Date "2020.09.08"]
[Round "4"]
[White "albi1999"]
[Black "TigrVShlyape"]
[Result "1/2-1/2"]
[WhiteElo "2622"]
[BlackElo "2811"]
[TimeControl "180+1"]
[EndTime "10:38:50 PDT"]
[Termination "Game drawn by repetition"]

1. d4 {[%clk 0:03:00.9]} 1... Nf6 {[%clk 0:02:58.1]} 2. c4 {[%clk 0:02:58]} 2...
e6 {[%clk 0:02:57.5]} 3. Nf3 {[%clk 0:02:57.6]} 3... b6 {[%clk 0:02:48]} 4. g3
{[%clk 0:02:54.7]} 4... Ba6 {[%clk 0:02:47.5]} 5. b3 {[%clk 0:02:52.9]} 5... c6
{[%clk 0:02:47.7]} 6. Bg2 {[%clk 0:02:43]} 6... d5 {[%clk 0:02:47.2]} 7. Qc2
{[%clk 0:02:43.2]} 7... Nbd7 {[%clk 0:02:46]} 8. O-O {[%clk 0:02:42.2]} 8... Be7
{[%clk 0:02:43.8]} 9. Bb2 {[%clk 0:02:39.8]} 9... Rc8 {[%clk 0:02:43.1]} 10. Rd1
{[%clk 0:02:39.3]} 10... O-O {[%clk 0:02:41.5]} 11. h3 {[%clk 0:02:25.2]} 11...
Qc7 {[%clk 0:02:24.7]} 12. Nbd2 {[%clk 0:02:24.5]} 12... Rfd8 {[%clk 0:02:24]}
13. e4 {[%clk 0:02:22.8]} 13... Qb8 {[%clk 0:02:18.1]} 14. Rac1 {[%clk
0:02:19.9]} 14... h6 {[%clk 0:02:05.2]} 15. Qb1 {[%clk 0:02:12.9]} 15... Bf8
{[%clk 0:02:01.5]} 16. e5 {[%clk 0:02:05.9]} 16... Ne8 {[%clk 0:02:00.3]} 17.
cxd5 {[%clk 0:02:01.1]} 17... cxd5 {[%clk 0:01:59.8]} 18. Nf1 {[%clk 0:02:01.7]}
18... Rxc1 {[%clk 0:01:58.8]} 19. Rxc1 {[%clk 0:02:02.6]} 19... Rc8 {[%clk
0:01:57.6]} 20. Ne3 {[%clk 0:02:02.5]} 20... Rxc1+ {[%clk 0:01:57.1]} 21. Qxc1
{[%clk 0:02:03.4]} 21... Qc8 {[%clk 0:01:55.8]} 22. Qxc8 {[%clk 0:02:03.5]}
22... Bxc8 {[%clk 0:01:55.4]} 23. Bf1 {[%clk 0:02:04.4]} 23... Nc7 {[%clk
0:01:55.7]} 24. Nc2 {[%clk 0:01:57.7]} 24... Ba6 {[%clk 0:01:55.3]} 25. Nfe1
{[%clk 0:01:55.3]} 25... Bxf1 {[%clk 0:01:53.9]} 26. Kxf1 {[%clk 0:01:56.2]}
26... f6 {[%clk 0:01:53.9]} 27. f4 {[%clk 0:01:55.3]} 27... Kf7 {[%clk
0:01:53.4]} 28. Ke2 {[%clk 0:01:55.2]} 28... g5 {[%clk 0:01:52.6]} 29. Kf3
{[%clk 0:01:53.9]} 29... gxf4 {[%clk 0:01:51.8]} 30. gxf4 {[%clk 0:01:54.6]}
30... f5 {[%clk 0:01:51.2]} 31. Nd3 {[%clk 0:01:53.4]} 31... a5 {[%clk 0:01:50]}
32. a4 {[%clk 0:01:45.7]} 32... Nb8 {[%clk 0:01:49.8]} 33. Ba3 {[%clk
0:01:43.3]} 33... Bxa3 {[%clk 0:01:48.7]} 34. Nxa3 {[%clk 0:01:44.2]} 34... Nc6
{[%clk 0:01:49]} 35. Nc2 {[%clk 0:01:44.1]} 35... Na6 {[%clk 0:01:48.8]} 36. Kg3
{[%clk 0:01:36.7]} 36... Kg6 {[%clk 0:01:46.4]} 37. Kh4 {[%clk 0:01:37]} 37...
Nc7 {[%clk 0:01:40.7]} 38. Kg3 {[%clk 0:01:25.6]} 38... Na6 {[%clk 0:01:40.3]}
39. Kh4 {[%clk 0:01:25.3]} 39... Nab4 {[%clk 0:01:20.6]} 40. Ndxb4 {[%clk
0:01:20]} 40... axb4 {[%clk 0:01:19]} 41. Kg3 {[%clk 0:01:19]} 41... Kh5 {[%clk
0:01:16.2]} 42. h4 {[%clk 0:01:07.8]} 42... Kg6 {[%clk 0:01:14.9]} 43. Kh3
{[%clk 0:01:04.5]} 43... Na5 {[%clk 0:01:04.2]} 44. Na1 {[%clk 0:00:48.4]} 44...
Kh5 {[%clk 0:00:59.4]} 45. Kg3 {[%clk 0:00:46.9]} 45... Kg6 {[%clk 0:00:59.5]}
46. Kh3 {[%clk 0:00:46.9]} 46... Kh5 {[%clk 0:00:58.5]} 47. Kg3 {[%clk
0:00:47.2]} 47... Kg6 {[%clk 0:00:58.4]} 48. Kh3 {[%clk 0:00:47.1]} 1/2-1/2

[Event "*** SCC Grand Prix: Titled Tuesday Blitz"]
[Site "Chess.com"]
[Date "2020.09.08"]
[Round "4"]
[White "Pultis"]
[Black "louis198"]
[Result "1-0"]
[WhiteElo "2737"]
[BlackElo "2502"]
[TimeControl "180+1"]
[EndTime "10:38:52 PDT"]
[Termination "Pultis won by checkmate"]

1. e4 {[%clk 0:03:00.9]} 1... e6 {[%clk 0:03:00.1]} 2. d4 {[%clk 0:02:59.8]}
2... d5 {[%clk 0:03:01]} 3. Nd2 {[%clk 0:02:57.9]} 3... Nc6 {[%clk 0:03:00.2]}
4. Ngf3 {[%clk 0:02:56.5]} 4... Nf6 {[%clk 0:02:51]} 5. e5 {[%clk 0:02:51.2]}
5... Nd7 {[%clk 0:02:50.9]} 6. c3 {[%clk 0:02:51]} 6... f6 {[%clk 0:02:49.6]} 7.
exf6 {[%clk 0:02:51.9]} 7... Qxf6 {[%clk 0:02:44.6]} 8. Qb3 {[%clk 0:02:43.5]}
8... Bd6 {[%clk 0:02:42.3]} 9. Bd3 {[%clk 0:02:40.3]} 9... O-O {[%clk 0:02:20]}
10. Nf1 {[%clk 0:02:40]} 10... Nb6 {[%clk 0:02:09.1]} 11. Qc2 {[%clk 0:02:20.7]}
11... h6 {[%clk 0:01:53]} 12. Ng3 {[%clk 0:02:04.8]} 12... e5 {[%clk 0:01:49]}
13. dxe5 {[%clk 0:01:26.2]} 13... Nxe5 {[%clk 0:01:46.3]} 14. Nxe5 {[%clk
0:01:25.4]} 14... Qxe5+ {[%clk 0:01:44.9]} 15. Be3 {[%clk 0:01:25.7]} 15... Bc5
{[%clk 0:01:23.1]} 16. O-O {[%clk 0:01:25.5]} 16... Bxe3 {[%clk 0:01:23]} 17.
fxe3 {[%clk 0:01:26.4]} 17... Qxe3+ {[%clk 0:01:22.9]} 18. Kh1 {[%clk 0:01:27]}
18... Bg4 {[%clk 0:01:12.1]} 19. Bh7+ {[%clk 0:01:26.5]} 19... Kh8 {[%clk
0:01:11]} 20. Bf5 {[%clk 0:01:13.7]} 20... Bxf5 {[%clk 0:01:01.7]} 21. Nxf5
{[%clk 0:01:14.6]} 21... Qg5 {[%clk 0:01:01.8]} 22. Rf3 {[%clk 0:01:14.4]} 22...
Rae8 {[%clk 0:00:58]} 23. Raf1 {[%clk 0:01:12.6]} 23... Nc4 {[%clk 0:00:36]} 24.
Qf2 {[%clk 0:00:54.1]} 24... Ne5 {[%clk 0:00:23.5]} 25. h4 {[%clk 0:00:42.2]}
25... Qh5 {[%clk 0:00:18.9]} 26. Rf4 {[%clk 0:00:42.2]} 26... Ng6 {[%clk
0:00:16]} 27. Qg3 {[%clk 0:00:41]} 27... Nxf4 {[%clk 0:00:15.8]} 28. Qxg7#
{[%clk 0:00:40.9]} 1-0

[Event "*** SCC Grand Prix: Titled Tuesday Blitz"]
[Site "Chess.com"]
[Date "2020.09.08"]
[Round "4"]
[White "Ramu_K_FM_FT"]
[Black "anon569"]
[Result "0-1"]
[WhiteElo "1954"]
[BlackElo "2250"]
[TimeControl "180+1"]
[EndTime "10:38:56 PDT"]
[Termination "anon569 won by checkmate"]

1. e4 {[%clk 0:03:00.9]} 1... c5 {[%clk 0:02:58.3]} 2. Nf3 {[%clk 0:03:00.6]}
2... d6 {[%clk 0:02:57.1]} 3. d3 {[%clk 0:03:00.5]} 3... g6 {[%clk 0:02:48]} 4.
g3 {[%clk 0:02:59.2]} 4... Bg7 {[%clk 0:02:48.1]} 5. Bg2 {[%clk 0:02:55.1]} 5...
Nc6 {[%clk 0:02:47.9]} 6. O-O {[%clk 0:02:53.9]} 6... Nf6 {[%clk 0:02:46.1]} 7.
Re1 {[%clk 0:02:54.3]} 7... O-O {[%clk 0:02:39.4]} 8. e5 {[%clk 0:02:54.5]} 8...
Nd5 {[%clk 0:01:51.3]} 9. exd6 {[%clk 0:02:28.8]} 9... Qxd6 {[%clk 0:01:50.9]}
10. Nbd2 {[%clk 0:02:25.4]} 10... e5 {[%clk 0:01:43.9]} 11. Nc4 {[%clk
0:02:12.4]} 11... Qe6 {[%clk 0:01:30.5]} 12. Ng5 {[%clk 0:02:07.5]} 12... Qd7
{[%clk 0:01:27.6]} 13. a4 {[%clk 0:01:59.3]} 13... f6 {[%clk 0:01:17.6]} 14. Ne4
{[%clk 0:01:50.2]} 14... b6 {[%clk 0:00:44.2]} 15. Ned6 {[%clk 0:01:49.7]} 15...
Nde7 {[%clk 0:00:33.9]} 16. c3 {[%clk 0:01:35.7]} 16... Ba6 {[%clk 0:00:30.3]}
17. Nb5 {[%clk 0:01:09.4]} 17... Rad8 {[%clk 0:00:27.1]} 18. Qb3 {[%clk
0:00:54.8]} 18... Kh8 {[%clk 0:00:20.3]} 19. Bf1 {[%clk 0:00:53.8]} 19... Bb7
{[%clk 0:00:18.1]} 20. Nbd6 {[%clk 0:00:48.3]} 20... Ba8 {[%clk 0:00:16.9]} 21.
Be3 {[%clk 0:00:44.1]} 21... Na5 {[%clk 0:00:16.4]} 22. Nxa5 {[%clk 0:00:43.1]}
22... Qxd6 {[%clk 0:00:16.4]} 23. Nc4 {[%clk 0:00:41.6]} 23... Qd5 {[%clk
0:00:16.5]} 24. a5 {[%clk 0:00:36.8]} 24... Qh1# {[%clk 0:00:15.9]} 0-1

[Event "*** SCC Grand Prix: Titled Tuesday Blitz"]
[Site "Chess.com"]
[Date "2020.09.08"]
[Round "4"]
[White "Violord"]
[Black "harvsp123"]
[Result "1-0"]
[WhiteElo "2679"]
[BlackElo "2474"]
[TimeControl "180+1"]
[EndTime "10:38:58 PDT"]
[Termination "Violord won by resignation"]

1. e4 {[%clk 0:02:59.7]} 1... g6 {[%clk 0:02:59.5]} 2. d4 {[%clk 0:02:58.3]}
2... Bg7 {[%clk 0:03:00.4]} 3. c3 {[%clk 0:02:58.5]} 3... d5 {[%clk 0:02:58.1]}
4. e5 {[%clk 0:02:56.8]} 4... c5 {[%clk 0:02:57.4]} 5. Be3 {[%clk 0:02:53.5]}
5... Nc6 {[%clk 0:02:56.9]} 6. dxc5 {[%clk 0:02:52.4]} 6... Nxe5 {[%clk
0:02:54.8]} 7. Bd4 {[%clk 0:02:43.3]} 7... Kf8 {[%clk 0:02:49.4]} 8. Nd2 {[%clk
0:02:34.4]} 8... Bg4 {[%clk 0:02:37.6]} 9. Qb3 {[%clk 0:02:30.9]} 9... Qd7
{[%clk 0:02:10.6]} 10. h3 {[%clk 0:02:20.9]} 10... Bf5 {[%clk 0:02:04.6]} 11.
Ngf3 {[%clk 0:01:49.1]} 11... Nxf3+ {[%clk 0:01:36.8]} 12. Nxf3 {[%clk
0:01:48.1]} 12... Nf6 {[%clk 0:00:33.6]} 13. Be2 {[%clk 0:01:41.2]} 13... h6
{[%clk 0:00:26.4]} 14. O-O {[%clk 0:01:39.9]} 14... g5 {[%clk 0:00:24.8]} 15.
Ne5 {[%clk 0:01:38.6]} 15... Qc7 {[%clk 0:00:23]} 16. f4 {[%clk 0:01:38.5]}
16... e6 {[%clk 0:00:19.3]} 17. g4 {[%clk 0:01:35.3]} 17... Be4 {[%clk 0:00:18]}
18. Qd1 {[%clk 0:01:23.2]} 18... Kg8 {[%clk 0:00:17.2]} 19. Qd2 {[%clk 0:01:21]}
19... Nd7 {[%clk 0:00:16.3]} 20. Nxd7 {[%clk 0:01:18.1]} 20... Qxd7 {[%clk
0:00:17.2]} 21. Bd3 {[%clk 0:01:11.2]} 21... gxf4 {[%clk 0:00:09.4]} 22. Bxg7
{[%clk 0:01:09.6]} 22... Bxd3 {[%clk 0:00:08.8]} 23. Bxh8 {[%clk 0:01:08.6]}
23... Bxf1 {[%clk 0:00:08.5]} 24. Qxf4 {[%clk 0:01:06.4]} 24... f5 {[%clk
0:00:04.7]} 25. Bd4 {[%clk 0:01:04.8]} 25... Bxh3 {[%clk 0:00:04.1]} 26. gxf5
{[%clk 0:01:04.8]} 26... Qh7 {[%clk 0:00:04.5]} 27. Qg3+ {[%clk 0:01:03.5]}
27... Kf7 {[%clk 0:00:04]} 28. Qxh3 {[%clk 0:01:03.4]} 28... Rg8+ {[%clk
0:00:03.5]} 29. Kh2 {[%clk 0:01:03.1]} 29... exf5 {[%clk 0:00:04.4]} 30. Re1
{[%clk 0:01:01.3]} 30... Re8 {[%clk 0:00:05.3]} 31. Qh5+ {[%clk 0:01:00.1]}
31... Qg6 {[%clk 0:00:04.7]} 32. Qxg6+ {[%clk 0:00:59.8]} 32... Kxg6 {[%clk
0:00:05.6]} 1-0

[Event "*** SCC Grand Prix: Titled Tuesday Blitz"]
[Site "Chess.com"]
[Date "2020.09.08"]
[Round "4"]
[White "awesomevishesh"]
[Black "lacafi"]
[Result "1-0"]
[WhiteElo "2395"]
[BlackElo "2163"]
[TimeControl "180+1"]
[EndTime "10:38:58 PDT"]
[Termination "awesomevishesh won by resignation"]

1. e4 {[%clk 0:03:00.9]} 1... c6 {[%clk 0:02:59.8]} 2. Nf3 {[%clk 0:02:59]} 2...
d5 {[%clk 0:03:00.7]} 3. d3 {[%clk 0:02:59.1]} 3... dxe4 {[%clk 0:03:00.8]} 4.
dxe4 {[%clk 0:02:59.5]} 4... Nd7 {[%clk 0:03:00.6]} 5. Bc4 {[%clk 0:02:46.9]}
5... e6 {[%clk 0:02:40.1]} 6. a4 {[%clk 0:02:44.3]} 6... Ngf6 {[%clk 0:02:31.9]}
7. Qe2 {[%clk 0:02:38]} 7... Bc5 {[%clk 0:02:24.8]} 8. O-O {[%clk 0:02:36.4]}
8... O-O {[%clk 0:02:23.9]} 9. c3 {[%clk 0:02:31.1]} 9... a6 {[%clk 0:02:22.5]}
10. a5 {[%clk 0:02:30.1]} 10... Qc7 {[%clk 0:02:18.6]} 11. e5 {[%clk 0:02:20.5]}
11... Nd5 {[%clk 0:02:09.4]} 12. Bd3 {[%clk 0:02:17.5]} 12... Re8 {[%clk
0:01:54.6]} 13. h4 {[%clk 0:02:07.5]} 13... Nf8 {[%clk 0:01:33.4]} 14. h5 {[%clk
0:02:00.8]} 14... Ne7 {[%clk 0:01:29]} 15. Nbd2 {[%clk 0:01:57]} 15... Nf5
{[%clk 0:01:26.5]} 16. Ne4 {[%clk 0:01:56.3]} 16... Ba7 {[%clk 0:01:20.3]} 17.
g4 {[%clk 0:01:50.8]} 17... Ne7 {[%clk 0:01:18.9]} 18. h6 {[%clk 0:01:48.2]}
18... Nd7 {[%clk 0:00:50.9]} 19. hxg7 {[%clk 0:01:39.9]} 19... Kxg7 {[%clk
0:00:50.8]} 20. Qd2 {[%clk 0:01:27.3]} 20... Ng8 {[%clk 0:00:17.5]} 21. Qg5+
{[%clk 0:01:24.3]} 21... Kh8 {[%clk 0:00:15.8]} 22. Bf4 {[%clk 0:01:12.9]} 22...
Bb8 {[%clk 0:00:12.6]} 23. Kg2 {[%clk 0:01:08.4]} 23... Qd8 {[%clk 0:00:13]} 24.
Qh5 {[%clk 0:01:03.7]} 24... Qe7 {[%clk 0:00:09.5]} 25. Rh1 {[%clk 0:01:00.1]}
25... f6 {[%clk 0:00:08.6]} 26. Nd6 {[%clk 0:00:51.2]} 26... Bxd6 {[%clk
0:00:07.6]} 27. exd6 {[%clk 0:00:51.3]} 27... Qg7 {[%clk 0:00:06.3]} 28. Qxe8
{[%clk 0:00:49.2]} 1-0